fUSD/lending_fUSD_20250612
["ID","MTS","AMOUNT","RATE_DAILY","PERIOD"]
[365496089,1749703849983,-150.0,0.00019995,4]
[365496090,1749703849992,-150.0,0.00019995,4]
[365496091,1749703850001,-150.0,0.00019997,4]
[365496092,1749703850011,-666.0,0.00019999,2]
[365496093,1749703850021,-300.0,0.00019999,2]
[365496094,1749703850031,-307.04182332,0.00019999,2]
[365496095,1749703850040,-206154.76110273,0.00019999,2]
[365496096,1749703850049,-666.0,0.00019999,2]
[365496097,1749703850059,-578.07560636,0.00019999,2]
[365496098,1749703850068,-65866.49064073,0.00019999,7]
[365496100,1749703851147,-1659.54210899,0.00019999,7]
[365496101,1749703851175,-2417.89520364,0.00019999,7]
[365496102,1749703851188,-2327.29573712,0.00019999,7]
[365496103,1749703851200,-3040.69466733,0.00019999,7]
[365496104,1749703851212,-14481.56539383,0.00019999,7]
[365496105,1749703851222,-7019.75523094,0.00019999,2]
[365496106,1749703851232,-191.38299501,0.00019999,2]
[365496107,1749703851242,-20137.0,0.00019999,2]
[365496108,1749703851252,-19106.0,0.00019999,2]
[365496109,1749703851263,-1015.3736,0.00019999,2]
[365496110,1749703851273,-151.0,0.00019999,2]
[365496111,1749703851284,-1001.4801,0.00019999,2]
[365496112,1749703851294,-151.0,0.00019999,2]
[365496113,1749703851304,-151.0,0.00019999,2]
[365496114,1749703851314,-151.0,0.00019999,2]
[365496115,1749703851325,-151.0,0.00019999,2]
[365496116,1749703851335,-206.44311,0.00019999,2]
[365496117,1749703851345,-206.44311,0.00019999,2]
[365496118,1749703851355,-151.0,0.00019999,2]
[365496119,1749703851366,-151.0,0.00019999,2]
[365496120,1749703851377,-151.0,0.00019999,2]
[365496121,1749703851387,-151.0,0.00019999,2]
[365496122,1749703851397,-151.0,0.00019999,2]
[365496123,1749703851408,-151.0,0.00019999,2]
[365496124,1749703851418,-151.0,0.00019999,2]
[365496125,1749703851428,-151.0,0.00019999,2]
[365496126,1749703851439,-151.0,0.00019999,2]
[365496127,1749703851448,-295.557294,0.00019999,2]
[365496128,1749703851459,-199.649151,0.00019999,2]
[365496129,1749703851469,-295.557294,0.00019999,2]
[365496130,1749703851481,-199.649151,0.00019999,2]
[365496131,1749703851495,-200.075811,0.00019999,2]
[365496132,1749703851506,-200.075811,0.00019999,2]
[365496133,1749703851516,-151.0,0.00019999,2]
[365496134,1749703851528,-151.0,0.00019999,2]
[365496135,1749703851539,-151.0,0.00019999,2]
[365496136,1749703851549,-151.0,0.00019999,2]
[365496137,1749703851560,-151.0,0.00019999,2]
[365496138,1749703851571,-151.0,0.00019999,2]
[365496139,1749703851582,-151.0,0.00019999,2]
[365496140,1749703851592,-151.0,0.00019999,2]
[365496141,1749703851602,-151.0,0.00019999,2]
[365496142,1749703851615,-151.0,0.00019999,2]
[365496143,1749703851627,-226.590785,0.00019999,2]
[365496144,1749703851638,-151.0,0.00019999,2]
[365496145,1749703851648,-226.590785,0.00019999,2]
[365496146,1749703851658,-153.543629,0.00019999,2]
[365496147,1749703851669,-177.080323,0.00019999,2]
[365496148,1749703851679,-151.0,0.00019999,2]
[365496149,1749703851689,-177.080323,0.00019999,2]
[365496150,1749703851699,-151.0,0.00019999,2]
[365496151,1749703851710,-151.0,0.00019999,2]
[365496152,1749703851720,-151.0,0.00019999,2]
[365496153,1749703851730,-151.0,0.00019999,2]
[365496154,1749703851740,-151.0,0.00019999,2]
[365496155,1749703851751,-151.0,0.00019999,2]
[365496156,1749703851762,-151.0,0.00019999,2]
[365496157,1749703851772,-252.499999,0.00019999,2]
[365496158,1749703851782,-151.0,0.00019999,2]
[365496159,1749703851792,-151.0,0.00019999,2]
[365496160,1749703851803,-151.0,0.00019999,2]
[365496161,1749703851814,-151.0,0.00019999,2]
[365496162,1749703851824,-151.0,0.00019999,2]
[365496163,1749703851836,-290.509648,0.00019999,2]
[365496164,1749703851846,-151.0,0.00019999,2]
[365496165,1749703851857,-435.879166,0.00019999,2]
[365496166,1749703851871,-435.879166,0.00019999,2]
[365496167,1749703851882,-1010.273772,0.00019999,2]
[365496168,1749703851892,-165.690337,0.00019999,2]
[365496169,1749703851902,-1010.273772,0.00019999,2]
[365496170,1749703851912,-165.690337,0.00019999,2]
[365496171,1749703851923,-311.778951,0.00019999,2]
[365496172,1749703851933,-311.778951,0.00019999,2]
[365496173,1749703851944,-151.0,0.00019999,2]
[365496174,1749703851955,-151.0,0.00019999,2]
[365496175,1749703851967,-219.095003,0.00019999,2]
[365496176,1749703851977,-219.095003,0.00019999,2]
[365496177,1749703851987,-376.519265,0.00019999,2]
[365496178,1749703851998,-376.519265,0.00019999,2]
[365496179,1749703852008,-200.0,0.00019999,2]
[365496180,1749703852018,-150.0,0.00019999,2]
[365496181,1749703852029,-500.0,0.00019999,2]
[365496182,1749703852040,-150.0,0.00019999,2]
[365496183,1749703852050,-500.0,0.00019999,2]
[365496184,1749703852060,-537.90711113,0.00019999,2]
[365496185,1749703852071,-500.0,0.00019999,2]
[365496186,1749703852081,-820.0,0.00019999,2]
[365496187,1749703852092,-764068.45913664,0.0002,3]
[365496188,1749703852103,-3505.98677659,0.0002,3]
[365496189,1749703852113,-247245.60887755,0.0002,2]
[365496190,1749703852127,-540614.08820465,0.0002,2]
[365496191,1749703852807,-200.0,0.00018115,2]
[365496192,1749703852818,-18813.20664102,0.0002,2]
[365496193,1749703852830,-3065.48505896,0.0002,2]
[365496194,1749703852907,-809.69404754,0.0002,2]
[365496195,1749703852974,-4079.1452856,0.0002,2]
[365496196,1749703853376,-185.795,0.00019466,2]
[365496197,1749703853387,-343.805,0.0002,2]
[365496198,1749703853455,-7145.56847393,0.0002,2]
[365496199,1749703853467,-781.82520002,0.0002,2]
[365496200,1749703853573,-4211.93700003,0.0002,2]
[365496201,1749703978729,312.68,0.00013699,2]
[365496207,1749704145212,1071.0,0.000171,2]
[365496209,1749704208656,500.0,0.00016165,2]
[365496210,1749704208919,500.0,0.00016165,2]
[365496211,1749704252665,189.77391408,0.00017015,2]
[365496213,1749704278384,2175.48595171,0.00024649,120]
[365496220,1749704421089,500.0,0.00016165,2]
[365496221,1749704421608,500.0,0.00016165,2]
[365496222,1749704427762,154.0,0.000162,14]
[365496232,1749704718013,856.51,0.00016412,2]
[365496238,1749704764644,8870.72446606,0.0002,30]
[365496239,1749704776549,175.16,0.00014695,2]
[365496241,1749704832176,-323.70621338,0.00017518,2]
[365496242,1749704832198,-1200.0,0.00017618,2]
[365496243,1749704832223,-18.62170576,0.00017618,2]
[365496244,1749704847109,-281.37829424,0.00017618,2]
[365496245,1749704847132,-300.0,0.00017618,2]
[365496246,1749704847154,-2205.20237193,0.00017619,2]
[365496247,1749704902741,2324.18206863,0.00024657,120]
[365496249,1749704930341,183.37,0.00016712,2]
[365496253,1749704962158,-201.0,0.00017122,2]
[365496254,1749704962182,-155.92802481,0.00017122,2]
[365496255,1749705004583,-46.07197519,0.00017122,2]
[365496256,1749705004637,-246.25412147,0.00017371,2]
[365496257,1749705006256,-3.74587853,0.00017371,2]
[365496258,1749705006283,-196.25412147,0.00017371,2]
[365496259,1749705007890,-103.74587853,0.00017371,2]
[365496260,1749705031750,-300.0,0.00017618,2]
[365496261,1749705031761,-1200.0,0.00017618,2]
[365496262,1749705031772,-1841.6540965,0.00017619,2]
[365496263,1749705031784,-270.05744419,0.00017619,2]
[365496264,1749705031971,-24345.93608738,0.00017619,2]
[365496265,1749705031980,-271.69277369,0.00017662,2]
[365496266,1749705031990,-201.0,0.00017762,2]
[365496267,1749705032001,-4738.18211667,0.00018179,2]
[365496268,1749705032011,-150.0,0.00018189,7]
[365496269,1749705032021,-6919.24,0.00018192,2]
[365496270,1749705032031,-500.0,0.00018224,2]
[365496271,1749705032041,-200.0,0.00018267,2]
[365496272,1749705032051,-200.0,0.00018279,2]
[365496273,1749705032061,-3811.11,0.00018307,2]
[365496274,1749705032071,-152.17,0.00018379,2]
[365496275,1749705032081,-166.48,0.00018393,2]
[365496276,1749705032091,-201.0,0.00018402,3]
[365496277,1749705032100,-521.22,0.00018404,2]
[365496278,1749705032110,-500.0,0.00018478,2]
[365496279,1749705032120,-150.0,0.00018493,2]
[365496280,1749705032130,-300.0,0.00018494,2]
[365496281,1749705032140,-23900.0,0.00018495,2]
[365496282,1749705032149,-208.52,0.00018504,2]
[365496283,1749705032160,-250.0,0.00018512,2]
[365496284,1749705032169,-1852.42,0.00018518,2]
[365496285,1749705032179,-2751.0,0.0001858,2]
[365496286,1749705032189,-1000.0,0.00018599,2]
[365496287,1749705032199,-10570.53,0.00018599,2]
[365496288,1749705032209,-13608.6,0.00018599,2]
[365496289,1749705032219,-12082.30578861,0.00018599,2]
[365496290,1749705032231,-3089.63861505,0.00018599,2]
[365496291,1749705032269,-1549.16559634,0.00018599,2]
[365496292,1749705032279,-856.51,0.00018676,2]
[365496293,1749705032290,-151.0,0.00018731,2]
[365496294,1749705032300,-859.35417345,0.00018731,2]
[365496295,1749705032310,-207.4,0.00018731,2]
[365496296,1749705032319,-182.98866982,0.00018764,2]
[365496361,1749705037696,-225.80133018,0.00018764,2]
[365496362,1749705037707,-250.0,0.00018835,2]
[365496363,1749705037718,-300.0,0.00018835,2]
[365496364,1749705037728,-931.5,0.00018877,2]
[365496365,1749705037738,-221.45105651,0.000189,2]
[365496366,1749705037749,-174.54,0.00018921,2]
[365496367,1749705037765,-221.45105646,0.00018934,2]
[365496368,1749705037775,-221.45105646,0.00018969,2]
[365496369,1749705037785,-400.27194703,0.00018972,2]
[365496370,1749705037795,-2053.53355336,0.00019,2]
[365496371,1749705037881,-487.16144789,0.00019,2]
[365496372,1749705037893,-5513.8,0.00019,2]
[365496373,1749705037906,-1109.46046499,0.00019,2]
[365496374,1749705037974,-9497.04453376,0.00019,2]
[365496375,1749705037984,-501.23,0.00019003,2]
[365496376,1749705037994,-507.14,0.00019003,2]
[365496377,1749705038005,-502.1,0.00019003,2]
[365496378,1749705038015,-300.53,0.00019003,2]
[365496379,1749705038024,-221.45105646,0.00019003,2]
[365496380,1749705038034,-493.29,0.00019004,2]
[365496381,1749705038044,-304.71,0.00019004,2]
[365496382,1749705038053,-491.03,0.00019005,2]
[365496383,1749705038064,-303.48954048,0.00019005,2]
[365496386,1749705038212,-195.92045952,0.00019005,2]
[365496388,1749705038222,-193.95757637,0.00019005,2]
[365496390,1749705038234,-109.59242363,0.00019005,2]
[365496392,1749705038245,-285.10956052,0.00019005,2]
[365496394,1749705038257,-207.32043948,0.00019005,2]
[365496396,1749705038267,-490.52,0.00019007,2]
[365496398,1749705038277,-95.78528236,0.00019007,2]
[365496401,1749705038290,-405.94471764,0.00019007,2]
[365496403,1749705038300,-491.59,0.00019007,2]
[365496404,1749705038309,-303.17,0.00019007,2]
[365496407,1749705038319,-492.55,0.00019007,2]
[365496408,1749705038329,-300.71,0.00019012,2]
[365496411,1749705038339,-301.27,0.00019012,2]
[365496413,1749705038349,-400.27194685,0.00019021,2]
[365496415,1749705038359,-221.45105646,0.00019038,2]
[365496417,1749705038372,-201.0,0.00019042,4]
[365496419,1749705038383,-904.90232577,0.00019065,2]
[365496421,1749705038393,-400.27194685,0.0001907,2]
[365496423,1749705038404,-221.45105646,0.00019072,2]
[365496425,1749705038414,-221.45105646,0.00019107,2]
[365496427,1749705038424,-400.27194685,0.00019119,2]
[365496429,1749705038434,-152.0,0.00019125,3]
[365496431,1749705038444,-221.45105646,0.00019141,2]
[365496433,1749705038453,-945.0,0.00019166,2]
[365496435,1749705038463,-2001.0,0.00019166,2]
[365496437,1749705038473,-1275.0,0.00019166,2]
[365496439,1749705038483,-558.0,0.00019166,2]
[365496441,1749705038494,-545.66689195,0.00019166,2]
[365496451,1749705038577,-44.33310805,0.00019166,2]
[365496453,1749705038587,-927.0,0.00019166,2]
[365496455,1749705038596,-71.49644848,0.00019166,2]
[365496594,1749705040035,-774.56655152,0.00019166,2]
[365496596,1749705040045,-400.27194685,0.00019167,2]
[365496598,1749705040055,-221.45105646,0.00019176,2]
[365496600,1749705040065,-1000.0,0.00019178,2]
[365496602,1749705040074,-1000.0,0.00019178,2]
[365496604,1749705040083,-1000.0,0.00019178,2]
[365496606,1749705040092,-1000.0,0.00019178,2]
[365496608,1749705040101,-1000.0,0.00019178,2]
[365496610,1749705040111,-1000.0,0.00019178,2]
[365496612,1749705040120,-1000.0,0.00019178,2]
[365496614,1749705040129,-508.0,0.00019178,2]
[365496616,1749705040139,-150.0,0.00019178,2]
[365496618,1749705040148,-1160.0,0.00019191,2]
[365496620,1749705040158,-478.35008296,0.00019193,2]
[365496622,1749705040167,-221.45105646,0.0001921,2]
[365496624,1749705040176,-420.0,0.00019231,2]
[365496626,1749705040186,-173.0,0.00019231,2]
[365496628,1749705040195,-221.45105646,0.00019245,2]
[365496630,1749705040204,-156.07760261,0.0001926,2]
[365496632,1749705040213,-250.0,0.0001927,2]
[365496634,1749705040222,-221.45105646,0.00019279,2]
[365496635,1749705040231,-4087.0,0.00019312,2]
[365496637,1749705040241,-7066.0,0.00019312,2]
[365496639,1749705040251,-203.665,0.00019312,2]
[365496641,1749705040262,-853.0,0.00019312,2]
[365496643,1749705040271,-221.45105646,0.00019314,2]
[365496645,1749705040280,-1680.0,0.00019326,2]
[365496647,1749705040291,-221.45105646,0.00019348,2]
[365496649,1749705040303,-4024.69519795,0.00019368,2]
[365496651,1749705040313,-221.45105646,0.00019383,2]
[365496653,1749705040323,-221.45105646,0.00019417,2]
[365496655,1749705040332,-160.57430854,0.00019425,2]
[365496657,1749705040342,-4024.69519792,0.00019427,2]
[365496659,1749705040351,-221.45105646,0.00019452,2]
[365496661,1749705040361,-150.0,0.00019466,2]
[365496663,1749705040371,-150.0,0.00019466,2]
[365496665,1749705040381,-170.0,0.00019466,2]
[365496667,1749705040390,-150.0,0.00019466,2]
[365496669,1749705040400,-150.0,0.00019468,2]
[365496671,1749705040409,-3331.0,0.00019468,2]
[365496673,1749705040418,-156.07760261,0.00019479,2]
[365496675,1749705040427,-221.45105646,0.00019486,2]
[365496677,1749705040436,-4024.69519792,0.00019486,2]
[365496679,1749705040446,-221.45105646,0.00019521,2]
[365496681,1749705040455,-4024.69519792,0.00019545,2]
[365496683,1749705040464,-221.45105646,0.00019555,2]
[365496685,1749705040474,-221.45105646,0.0001959,2]
[365496688,1749705040484,-669.63581989,0.00019604,2]
[365496690,1749705040497,-1563.23830314,0.00019604,2]
[365496692,1749705040510,-1155.00000005,0.00019604,2]
[365496694,1749705040521,-636.82107484,0.00019604,2]
[365496696,1749705040531,-221.45105646,0.00019624,2]
[365496698,1749705040541,-221.45105646,0.00019659,2]
[365496700,1749705040550,-4024.69519792,0.00019664,2]
[365496702,1749705040560,-201.0,0.00019682,5]
[365496704,1749705040569,-221.45105646,0.00019693,2]
[365496707,1749705040579,-5353.95,0.000197,2]
[365496708,1749705040588,-4024.69519792,0.00019723,2]
[365496711,1749705040598,-151.0,0.00019726,2]
[365496713,1749705040608,-221.45105646,0.00019728,2]
[365496715,1749705040617,-810.8411732,0.00019748,2]
[365496717,1749705040627,-500.0,0.00019758,2]
[365496719,1749705040636,-500.0,0.00019758,2]
[365496720,1749705040646,-500.0,0.00019758,2]
[365496722,1749705040655,-500.0,0.00019758,2]
[365496724,1749705040665,-500.0,0.00019758,2]
[365496726,1749705040675,-500.0,0.00019758,2]
[365496729,1749705040684,-500.0,0.00019758,2]
[365496731,1749705040694,-500.0,0.00019758,2]
[365496733,1749705040704,-500.0,0.00019758,2]
[365496735,1749705040714,-500.0,0.00019758,2]
[365496737,1749705040724,-500.0,0.00019758,2]
[365496739,1749705040733,-500.0,0.00019758,2]
[365496741,1749705040743,-935.267,0.00019762,2]
[365496743,1749705040753,-221.45105646,0.00019762,2]
[365496745,1749705040763,-4024.69519792,0.00019782,2]
[365496747,1749705040772,-500.0,0.00019782,2]
[365496749,1749705040781,-500.0,0.00019782,2]
[365496751,1749705040791,-500.0,0.00019782,2]
[365496753,1749705040800,-500.0,0.00019782,2]
[365496755,1749705040809,-500.0,0.00019782,2]
[365496757,1749705040819,-500.0,0.00019782,2]
[365496759,1749705040835,-500.0,0.00019782,2]
[365496761,1749705040846,-500.0,0.00019782,2]
[365496764,1749705040856,-500.0,0.00019782,2]
[365496766,1749705040866,-500.0,0.00019782,2]
[365496768,1749705040876,-500.0,0.00019782,2]
[365496770,1749705040885,-500.0,0.00019782,2]
[365496772,1749705040895,-221.45105646,0.00019797,2]
[365496774,1749705040905,-221.45105646,0.00019831,2]
[365496776,1749705040915,-761.15146216,0.00019841,2]
[365496778,1749705040928,-3263.54373576,0.00019841,2]
[365496780,1749705040938,-1000.0,0.00019853,2]
[365496782,1749705040948,-221.45105646,0.00019866,2]
[365496784,1749705040958,-216.30585782,0.00019894,2]
[365496786,1749705040968,-1470.06192515,0.00019894,2]
[365496788,1749705040978,-1470.06192508,0.00019895,2]
[365496790,1749705040988,-1470.06192508,0.00019895,2]
[365496792,1749705040998,-1470.06192508,0.00019896,2]
[365496794,1749705041009,-1470.06192508,0.00019897,2]
[365496796,1749705041019,-1470.06192508,0.00019897,2]
[365496799,1749705041031,-1470.06192508,0.00019898,2]
[365496801,1749705041040,-1470.06192508,0.00019899,2]
[365496803,1749705041050,-298.77669868,0.00019899,2]
[365496805,1749705041060,-515.15399301,0.00019899,2]
[365496807,1749705041070,-165.99198552,0.00019899,2]
[365496809,1749705041079,-296.62828283,0.00019899,2]
[365496811,1749705041090,-243.92353738,0.00019899,2]
[365496813,1749705041100,-1470.06192508,0.00019899,2]
[365496815,1749705041110,-512.05690869,0.000199,2]
[365496817,1749705041120,-1000.0,0.000199,2]
[365496819,1749705041130,-1014.0,0.000199,2]
[365496821,1749705041139,-1000.0,0.000199,2]
[365496823,1749705041148,-1000.0,0.000199,2]
[365496825,1749705041158,-1000.0,0.000199,2]
[365496827,1749705041168,-1000.0,0.000199,2]
[365496829,1749705041178,-1000.0,0.000199,3]
[365496831,1749705041187,-1000.0,0.000199,3]
[365496833,1749705041197,-1000.0,0.000199,3]
[365496835,1749705041208,-1000.0,0.000199,3]
[365496837,1749705041218,-1000.0,0.000199,2]
[365496839,1749705041228,-1000.0,0.000199,2]
[365496841,1749705041238,-1011.0,0.000199,2]
[365496843,1749705041248,-5800.0,0.000199,2]
[365496845,1749705041259,-1000.0,0.000199,2]
[365496848,1749705041274,-1000.0,0.000199,2]
[365496850,1749705041285,-150.0,0.000199,2]
[365496852,1749705041298,-161.77392948,0.000199,2]
[365496854,1749705041308,-1000.0,0.000199,2]
[365496856,1749705041318,-1000.0,0.000199,2]
[365496858,1749705041328,-1000.0,0.000199,2]
[365496861,1749705041340,-480.0,0.000199,3]
[365496863,1749705041350,-538.29847511,0.000199,2]
[365496865,1749705041360,-4024.69519792,0.000199,2]
[365496867,1749705041370,-221.45105646,0.000199,2]
[365496869,1749705041381,-1470.06192508,0.000199,2]
[365496871,1749705041391,-207.95420417,0.000199,2]
[365496873,1749705041400,-15174.15101751,0.000199,2]
[365496879,1749705041452,-1082.64833014,0.000199,2]
[365496881,1749705041464,-628.6274811,0.000199,2]
[365496883,1749705041474,-295.9314906,0.00019973,2]
[365496886,1749705041487,-204.0685094,0.00019973,2]
[365496888,1749705041496,-159.94821786,0.00019973,2]
[365496890,1749705041507,-14.90827274,0.00019973,2]
[365496892,1749705041520,-485.09172726,0.00019973,2]
[365496894,1749705041529,-500.0,0.00019973,2]
[365496896,1749705041539,-500.0,0.00019973,2]
[365496898,1749705041550,-500.0,0.00019973,2]
[365496900,1749705041560,-507.17260007,0.00019973,2]
[365496902,1749705041570,-1000.0,0.00019986,2]
[365496904,1749705041580,-150.21,0.0001999,2]
[365496906,1749705041590,-150.21,0.0001999,2]
[365496908,1749705041600,-150.21,0.0001999,2]
[365496911,1749705041610,-150.21,0.0001999,2]
[365496913,1749705041621,-150.21,0.0001999,2]
[365496915,1749705041631,-150.21,0.0001999,2]
[365496917,1749705041641,-150.21,0.0001999,2]
[365496919,1749705041651,-150.21,0.0001999,2]
[365496921,1749705041661,-150.21,0.0001999,2]
[365496923,1749705041671,-150.21,0.0001999,2]
[365496925,1749705041682,-150.21,0.0001999,2]
[365496927,1749705041692,-150.21,0.0001999,2]
[365496929,1749705041707,-150.21,0.0001999,2]
[365496931,1749705041716,-150.21,0.0001999,2]
[365496934,1749705041727,-150.21,0.0001999,2]
[365496936,1749705041737,-150.21,0.0001999,2]
[365496938,1749705041747,-150.21,0.0001999,2]
[365496940,1749705041759,-150.21,0.0001999,2]
[365496942,1749705041769,-150.21,0.0001999,2]
[365496944,1749705041780,-150.21,0.0001999,2]
[365496946,1749705041790,-150.21,0.0001999,2]
[365496948,1749705041800,-150.21,0.0001999,2]
[365496950,1749705041810,-150.21,0.0001999,2]
[365496952,1749705041820,-150.21,0.0001999,2]
[365496954,1749705041830,-150.21,0.0001999,2]
[365496956,1749705041840,-150.21,0.0001999,2]
[365496958,1749705041851,-150.21,0.0001999,2]
[365496960,1749705041861,-150.21,0.0001999,2]
[365496962,1749705041871,-150.21,0.0001999,2]
[365496964,1749705041882,-150.21,0.0001999,2]
[365496966,1749705041892,-150.21,0.0001999,2]
[365496968,1749705041902,-150.21,0.0001999,2]
[365496970,1749705041912,-150.21,0.0001999,2]
[365496973,1749705041923,-150.21,0.0001999,2]
[365496975,1749705041933,-150.21,0.0001999,2]
[365496977,1749705041942,-150.21,0.0001999,2]
[365496979,1749705041952,-150.21,0.0001999,2]
[365496981,1749705041962,-80.73979699,0.0001999,2]
[365496983,1749705041977,-69.47020301,0.0001999,2]
[365496985,1749705041987,-150.21,0.0001999,2]
[365496987,1749705041997,-150.21,0.0001999,2]
[365496989,1749705042008,-150.21,0.0001999,2]
[365496991,1749705042018,-150.21,0.0001999,2]
[365496993,1749705042028,-150.21,0.0001999,2]
[365496995,1749705042039,-150.21,0.0001999,2]
[365496997,1749705042049,-150.21,0.0001999,2]
[365496999,1749705042059,-150.21,0.0001999,2]
[365497002,1749705042070,-150.21,0.0001999,2]
[365497004,1749705042079,-150.21,0.0001999,2]
[365497006,1749705042089,-150.21,0.0001999,2]
[365497008,1749705042099,-150.21,0.0001999,2]
[365497010,1749705042110,-150.21,0.0001999,2]
[365497012,1749705042121,-150.21,0.0001999,2]
[365497014,1749705042131,-150.21,0.0001999,2]
[365497017,1749705042152,-150.21,0.0001999,2]
[365497019,1749705042165,-150.21,0.0001999,2]
[365497021,1749705042175,-150.21,0.0001999,2]
[365497024,1749705042185,-150.21,0.0001999,2]
[365497026,1749705042196,-150.21,0.0001999,2]
[365497028,1749705042206,-150.21,0.0001999,2]
[365497030,1749705042217,-150.21,0.0001999,2]
[365497032,1749705042228,-150.21,0.0001999,2]
[365497034,1749705042239,-150.21,0.0001999,2]
[365497036,1749705042249,-150.21,0.0001999,2]
[365497038,1749705042261,-150.21,0.0001999,2]
[365497040,1749705042271,-150.21,0.0001999,2]
[365497043,1749705042282,-150.21,0.0001999,2]
[365497044,1749705042295,-150.21,0.0001999,2]
[365497045,1749705042306,-150.21,0.0001999,2]
[365497046,1749705042317,-150.21,0.0001999,2]
[365497047,1749705042327,-150.21,0.0001999,2]
[365497048,1749705042339,-150.21,0.0001999,2]
[365497049,1749705042350,-150.21,0.0001999,2]
[365497050,1749705042360,-150.21,0.0001999,2]
[365497051,1749705042372,-150.21,0.0001999,2]
[365497052,1749705042382,-150.21,0.0001999,2]
[365497054,1749705042392,-150.21,0.0001999,2]
[365497056,1749705042403,-150.21,0.0001999,2]
[365497058,1749705042414,-150.21,0.0001999,2]
[365497060,1749705042424,-150.21,0.0001999,2]
[365497062,1749705042434,-150.21,0.0001999,2]
[365497064,1749705042445,-150.21,0.0001999,2]
[365497066,1749705042455,-150.19979697,0.0001999,2]
[365497069,1749705042468,-0.01020303,0.0001999,2]
[365497071,1749705042479,-150.21,0.0001999,2]
[365497073,1749705042489,-150.21,0.0001999,2]
[365497075,1749705042499,-150.21,0.0001999,2]
[365497077,1749705042510,-150.21,0.0001999,2]
[365497079,1749705042520,-150.21,0.0001999,2]
[365497081,1749705042531,-150.21,0.0001999,2]
[365497083,1749705042542,-103.58803757,0.00019994,2]
[365497085,1749705042555,-3966.09801032,0.00019994,2]
[365497093,1749705042620,-150.21,0.0001999,2]
[365497095,1749705042631,-26241.54777741,0.00019994,2]
[365497097,1749705042640,-204226.2203979,0.00019994,2]
[365497099,1749705042651,-9665.7380381,0.00019994,2]
[365497103,1749705042663,-151.0,0.00019996,2]
[365497106,1749705042673,-151.0,0.00019996,2]
[365497108,1749705042683,-151.0,0.00019996,2]
[365497110,1749705042694,-151.0,0.00019996,2]
[365497112,1749705042704,-151.0,0.00019996,2]
[365497114,1749705042714,-151.0,0.00019996,2]
[365497116,1749705042724,-151.0,0.00019996,2]
[365497119,1749705042733,-256.13333265,0.00019996,2]
[365497122,1749705042743,-666.0,0.00019999,2]
[365497125,1749705042755,-666.0,0.00019999,2]
[365497127,1749705042765,-666.0,0.00019999,2]
[365497129,1749705042775,-300.0,0.00019999,2]
[365497131,1749705042785,-300.0,0.00019999,2]
[365497133,1749705042795,-1101.55414014,0.00019999,5]
[365497135,1749705042805,-151.0,0.00019999,2]
[365497137,1749705042815,-411.036625,0.00019999,2]
[365497140,1749705042825,-411.036625,0.00019999,2]
[365497142,1749705042835,-151.0,0.00019999,2]
[365497144,1749705042845,-65931.045785,0.00019999,7]
[365497146,1749705042856,-578.07560636,0.00019999,2]
[365497148,1749705042866,-150.0,0.00019999,2]
[365497150,1749705042876,-150.0,0.00019999,2]
[365497152,1749705042886,-150.0,0.00019999,2]
[365497154,1749705042896,-150.0,0.00019999,2]
[365497156,1749705042906,-500.0,0.00019999,2]